{"text_format":"1","workbook":"xlsx","n_sheets":9,"sheets":["Identification","Personnel","Divers","Frais de mission","Frais de stage et de formation","Frais de consultance extérieure","Volet économique","Récapitulatif","Déclaration"],"not_rendered":{"charts":0,"images":10,"macros":1,"external_links":2,"defined_names":16,"comments":0,"pivot_tables":0},"unopened":[],"bounds":{"document_bytes":16777216,"sheet_cells":100000,"rows_first":2000,"rows_last":500,"rows_between":2000,"halvings":0,"cell_chars":16384,"cell_head_chars":4096},"cells_cut":0,"cells_raw":0,"read":"whole","date_system":"1900"}

{"sheet":"Identification","index":0,"n_rows":54,"n_cols":9,"rows_kept":54,"cut":false,"hidden":false,"merged":[[53,3,53,4],[25,1,26,4],[48,3,48,4],[51,3,51,4],[38,1,38,3],[45,1,45,4],[47,3,47,4],[1,1,1,4],[10,3,10,4],[11,3,11,4],[12,3,12,4],[15,1,15,3],[29,1,29,2],[18,3,18,4],[19,3,19,4],[20,3,20,4],[24,1,24,3]]}
[]
[null,"Identification & Informations générales"]
[null,"Version 3.7"]
[null,null,null,"Programme :",""]
[null,null,null,"N° de convention :"]
[null,null,null,"Acronyme :",null,null,null,null,"ATTENTION : VOUS NE DEVEZ REMPLIR QUE LES CASES/COLONNES EN JAUNE"]
[null,null,null,"Nom du requérant :",null,null,null,null,"LES CASES/COLONNES EN BLEU SONT REMPLIES PAR LA DGO6."]
[null,null,null,"N° BCE :"]
[]
[]
[null,null,"Personne de contact :"]
[null,null,"Téléphone :"]
[null,null,"Email :"]
[]
[]
[null,"Le rapport scientifique/technique a-t-il été envoyé ?"]
[]
[]
[null,null,"Personne de contact :"]
[null,null,"Téléphone :"]
[null,null,"Email :",null,null,null,"Un problème de remplissage ?"]
[null,null,null,null,null,null,"--> Notice explicative disponible sur le portail (au même endroit que le relevé)"]
[]
[null,null,null,null,null,null,"Un problème technique/informatique ?"]
[null,"L'ensemble des rapports prévus par la convention ont-ils été envoyés ?",null,null,null,null,"--> FAQ disponible sur le portail (au même endroit que le relevé)"]
[null,{"$f":"IF(E25=\"Non\",Divers!B15,\"\")","v":""}]
[null,null,null,null,null,null,"Un autre problème ?"]
[null,null,null,null,null,null,"--> Prendre contact avec les personnes de contact sur le portail ou votre gestionnaire"]
[null,null,null,null,null,null,"comptable"]
[null,"Période des dépenses :",null,"1er mois"]
[null,null,null,"2ème mois"]
[null,null,"(mm/aaaa)","3ème mois"]
[null,null,null,"4ème mois"]
[null,null,null,"5ème mois"]
[null,null,null,"6ème mois"]
[]
[null,null,null,"Je suis:",""]
[]
[null,"Donc mes frais généraux sont de :"]
[]
[null,null,null,"L'intervention de la Région wallone est de :"]
[]
[null,null,null,"Récupérez-vous la TVA sur les achats ?"]
[]
[]
[null,"Le personnel affecté à la recherche se compose de:"]
[]
[null,"Statut","Fonction","Nom du prestataire"]
[null,"Employé","Chercheur"]
[]
[]
[null,null,"Relevé contrôlé par :","<Nom Prénom du Gestionnaire comptable>"]
[]
[null,null,"Date de contrôle :","JJ/MM/AAAA"]

{"sheet":"Personnel","index":1,"n_rows":0,"n_cols":0,"rows_kept":0,"cut":false,"hidden":false,"merged":[]}

{"sheet":"Divers","index":2,"n_rows":27,"n_cols":13,"rows_kept":27,"cut":false,"hidden":true,"merged":[]}
[null,null,null,null,0,0,0,null,null,null,null,null,"TableauRevision"]
["FIRST Spin-off","Oui","une entreprise","Justificatif manquant"]
["FIRST Haute Ecole","Non","un centre de recherche sauf OIP","Justificatif non probant"]
["FIRST International",null,"une université/haute école/OIP","Hors période"]
["FIRST Entreprise",null,null,"Montant HTVA/ TVAC"]
["RPR",null,null,"Limite budgétaire"]
["BEWARE/COFUND",null,null,"Limitation par gest tech"]
["FIRST Doctorant",null,null,"Pas de rapport de mission"]
[null,null,null,"Pas de budget prévu"]
[null,null,null,"Repris dans forfait Frais généraux"]
[null,null,null,"Compris dans le per diem"]
[null,null,null,"Dépense déjà présentée"]
[null,null,null,"Dépense non admise"]
[]
[null,"Votre dossier de créance, sans le rapport scientifique/technique, n'est pas éligible. Il vous est donc impossible d'accéder à l'onglet d'impression de votre déclaration de créance."]
[]
[]
[]
[]
["Taux de chargement"]
["Salaire brut"]
["Taux d'occupation"]
["--------------------"]
["Brut soumis ONSS"]
["Arrièrés"]
["ONSS"]
["Assurances"]

{"sheet":"Frais de mission","index":3,"n_rows":18,"n_cols":12,"rows_kept":18,"cut":false,"hidden":true,"merged":[]}
[]
[null,"FRAIS DE MISSION"]
[]
[]
["N° de la pièce justificative","Prestataire","Libellé de la pièce","N° de pièce bénéficiaire","Date d'émission de la pièce","Montant","Montant déclaré","Montant accepté","Motif de la révision","Commentaires DGO6","Date de contrôle pièce","Date de contrôle sur place"]
[]
[]
[]
[]
[]
[]
[]
[]
[]
[]
[]
[]
["Total",null,null,null,null,{"$f":"SUM(F6:F17)","v":0},{"$f":"SUM(G6:G17)","v":0},{"$f":"SUM(H6:H17)","v":0}]

{"sheet":"Frais de stage et de formation","index":4,"n_rows":18,"n_cols":12,"rows_kept":18,"cut":false,"hidden":true,"merged":[[1,1,1,2]]}
[]
[null,"FRAIS DE STAGE ET DE FORMATION"]
[]
[]
["N° de la pièce justificative","Prestataire","Libellé de la pièce","N° de pièce bénéficiaire","Date d'émission de la pièce","Montant","Montant déclaré","Montant accepté","Motif de la révision","Commentaires DGO6","Date de contrôle pièce","Date de contrôle sur place"]
[1]
[]
[]
[]
[]
[]
[]
[]
[]
[]
[]
[]
["Total",null,null,null,null,{"$f":"SUM(F6:F17)","v":0},{"$f":"SUM(G6:G17)","v":0},{"$f":"SUM(H6:H17)","v":0}]

{"sheet":"Frais de consultance extérieure","index":5,"n_rows":18,"n_cols":12,"rows_kept":18,"cut":false,"hidden":true,"merged":[[1,1,1,2]]}
[]
[null,"FRAIS DE CONSULTANCE EXTERIEURE"]
[]
[]
["N° de la pièce justificative","Prestataire","Libellé de la pièce","N° de pièce bénéficiaire","Date d'émission de la pièce","Montant","Montant déclaré","Montant accepté","Motif de la révision","Commentaires DGO6","Date de contrôle pièce","Date de contrôle sur place"]
[]
[]
[]
[]
[]
[]
[]
[]
[]
[]
[]
[]
["Total",null,null,null,null,{"$f":"SUM(F6:F17)","v":0},{"$f":"SUM(G6:G17)","v":0},{"$f":"SUM(H6:H17)","v":0}]

{"sheet":"Volet économique","index":6,"n_rows":18,"n_cols":12,"rows_kept":18,"cut":false,"hidden":true,"merged":[[1,1,1,2]]}
[]
[null,"VOLET ECONOMIQUE"]
[]
[]
["N° de la pièce justificative","Prestataire","Libellé de la pièce","N° de pièce bénéficiaire","Date d'émission de la pièce","Montant","Montant déclaré","Montant accepté","Motif de la révision","Commentaires DGO6","Date de contrôle pièce","Date de contrôle sur place"]
[]
[]
[]
[]
[]
[]
[]
[]
[]
[]
[]
[]
["Total",null,null,null,null,{"$f":"SUM(F6:F17)","v":0},{"$f":"SUM(G6:G17)","v":0},{"$f":"SUM(H6:H17)","v":0}]

{"sheet":"Récapitulatif","index":7,"n_rows":45,"n_cols":8,"rows_kept":45,"cut":false,"hidden":false,"merged":[[40,0,40,6],[41,0,41,6],[1,1,1,2],[39,0,39,6],[26,0,26,6]]}
[]
[null,"RECAPITULATIF"]
[]
["Période en cours :","du",null,"au",null,"soit",null,"mois"]
[]
["Rubrique","Montant déclaré (€)","Montant accepté (€)"]
["Personnel",0,0]
["Fonctionnement (forfait)",0,0]
["Frais de mission à l'étranger","-","-"]
["Frais de stage et de formation",0,0]
["Frais de coordination (forfait)","-","-"]
["Frais généraux personnel","-","-"]
["Frais généraux fonctionnement","-","-"]
["Frais de consultance extérieure","-","-"]
["Frais de mobilité (forfait)","-","-"]
["Frais de recherche (forfait)","-","-"]
["Volet économique",0,0]
["Total",{"$f":"SUM(B7:B17)","v":0},{"$f":"SUM(C7:C17)","v":0}]
["Intervention SPW",0,0]
[]
[]
[]
["Etapes suivantes :"]
[]
["Dès que j'ai fini de compléter soigneusement toutes les cases/colonnes en JAUNE, je renomme le fichier de la façon suivante :"]
[]
["N° de convention-Nom du bénéficiaire-Période de début-Période de fin  (exemple : 5911-FactorySA-012013-062013)"]
[]
["Avec l'espace personnel"]
[]
["1)  Je me rends sur le portail \"Wallonie\" (www.wallonie.be) pour accéder à mon espace personnel."]
["2)  Je complète la déclaration de créance, je la signe électroniquement et je la transmets avec en pièce attachée, le relevé des dépenses."]
["OU  je complète la déclaration de créance, je l'imprime, je la signe en 2 exemplaires originaux, je la renvoie à l'adresse ci-après et transmets le relevé des dépenses."]
[]
[]
["Sans l'espace personnel"]
[]
["1) J'imprime ma déclaration de créance (onglet suivant) que je signe en 2 exemplaires originaux et que je renvoie  à l'adresse  :"]
[]
["DGO6 - Direction de la Gestion Financière"]
["place de la Wallonie 1 - Bâtiment II, 5ème étage"]
["5100   JAMBES"]
[]
["2) Après je n'oublie pas d'envoyer ce fichier excel à l'adresse mail : dc.dgf.dgo6@spw.wallonie.be"]
[null,null,"(et non dg06)"]

{"sheet":"Déclaration","index":8,"n_rows":37,"n_cols":6,"rows_kept":37,"cut":false,"hidden":false,"merged":[[14,4,14,5],[1,0,1,3],[14,0,14,1],[17,0,17,3],[36,0,36,1],[37,0,37,1],[5,1,5,2]]}
[]
["Déclaration de créance n° ",null,null,null,"<XXXX>"]
[]
[]
["Je soussigné,"]
["représentant ",{"$f":"Identification!E7","v":0}]
["déclare qu'il est dû par la Région wallonne",null,null,null,0,"€"]
[]
["Cette somme correspond à l'intervention régionale dans les dépenses "]
["soumises pour la période du ",null,{"$f":"Récapitulatif!C4","v":"00:00:00"},"au",{"$f":"Récapitulatif!E4","v":"00:00:00"}]
["tel que prévu par la convention numéro",null,null,{"$f":"Identification!E5","v":0}]
[null,null,null,{"$f":"Identification!E6","v":0}]
[]
["Le montant de cette déclaration de créance est à payer au compte IBAN "]
[null,null,{"$f":"\"      ouvert au nom de \"","v":"      ouvert au nom de "},null,{"$f":"Identification!E7","v":0}]
[]
["avec la mention"]
["<Communication>"]
[]
["J'affirme sur l'honneur que la présente déclaration est sincère et véritable à la somme de"]
["mille quarante-huit euros et trente-trois cents"]
["et que toutes les mesures nécessaires ont été prises pour éviter qu'une dépense ne soit imputée plusieurs fois."]
[]
[]
[]
["Fait en 2 exemplaires, le 07/05/2019"]
[]
[]
[]
[]
[]
[]
[]
[]
[]
[{"$f":"\"Pour \"&Identification!E7","v":"Pour "}]
["<Nom Prénom>"]